fUSD/lending_fUSD_20260416
["ID","MTS","AMOUNT","RATE_DAILY","PERIOD"]
[420590446,1776282650665,-500.0,0.00013699,2]
[420590447,1776282650675,-500.0,0.00013699,2]
[420590448,1776282650685,-500.82826281,0.00013699,2]
[420590449,1776282650695,-391.74002262,0.00013699,2]
[420590450,1776282650705,-387.01996279,0.00013699,2]
[420590451,1776282650715,-500.0,0.00013699,2]
[420590452,1776282650724,-500.0,0.00013699,2]
[420590453,1776282650734,-500.67014475,0.00013699,2]
[420590454,1776282650746,-501.01552979,0.00013699,2]
[420590455,1776282650755,-500.0,0.00013699,2]
[420590456,1776282650764,-447.08296765,0.00013699,2]
[420590457,1776282650774,-500.0,0.00013699,2]
[420590458,1776282650784,-500.0,0.00013699,2]
[420590459,1776282650794,-500.0,0.00013699,2]
[420590460,1776282650804,-418.98087606,0.00013699,2]
[420590461,1776282650813,-500.0,0.00013699,2]
[420590462,1776282650823,-213.73408632,0.00013699,2]
[420590463,1776282650832,-500.0,0.00013699,2]
[420590464,1776282650842,-500.0,0.00013699,2]
[420590465,1776282650852,-500.0,0.00013699,2]
[420590466,1776282650861,-500.0,0.00013699,2]
[420590467,1776282650871,-500.0,0.00013699,2]
[420590468,1776282650881,-500.88012616,0.00013699,2]
[420590469,1776282650892,-500.23216772,0.00013699,2]
[420590470,1776282650902,-375.0,0.00013699,2]
[420590471,1776282650912,-375.0,0.00013699,2]
[420590472,1776282650921,-375.0,0.00013699,2]
[420590473,1776282650931,-375.0,0.00013699,2]
[420590474,1776282650940,-375.0,0.00013699,2]
[420590475,1776282650950,-375.0,0.00013699,2]
[420590476,1776282650959,-375.0,0.00013699,2]
[420590477,1776282650968,-375.0,0.00013699,2]
[420590478,1776282650978,-375.0,0.00013699,2]
[420590479,1776282650987,-375.0,0.00013699,2]
[420590480,1776282650996,-375.0,0.00013699,2]
[420590481,1776282651006,-375.0,0.00013699,2]
[420590482,1776282651015,-375.0,0.00013699,2]
[420590483,1776282651024,-375.0,0.00013699,2]
[420590484,1776282651034,-375.0,0.00013699,2]
[420590485,1776282651043,-375.0,0.00013699,2]
[420590486,1776282651052,-375.0,0.00013699,2]
[420590487,1776282651062,-375.0,0.00013699,2]
[420590488,1776282651071,-375.0,0.00013699,2]
[420590489,1776282651081,-375.0,0.00013699,2]
[420590490,1776282651090,-375.0,0.00013699,2]
[420590491,1776282651099,-375.0,0.00013699,2]
[420590492,1776282651109,-375.0,0.00013699,2]
[420590493,1776282651118,-375.0,0.00013699,2]
[420590494,1776282651127,-375.0,0.00013699,2]
[420590495,1776282651136,-375.0,0.00013699,2]
[420590496,1776282651147,-375.0,0.00013699,2]
[420590497,1776282651156,-375.0,0.00013699,2]
[420590498,1776282651166,-375.0,0.00013699,2]
[420590499,1776282651175,-375.0,0.00013699,2]
[420590500,1776282651185,-375.0,0.00013699,2]
[420590501,1776282651194,-375.0,0.00013699,2]
[420590502,1776282651204,-375.0,0.00013699,2]
[420590503,1776282651213,-375.0,0.00013699,2]
[420590504,1776282651222,-375.0,0.00013699,2]
[420590505,1776282651232,-375.0,0.00013699,2]
[420590506,1776282651242,-375.0,0.00013699,2]
[420590507,1776282651251,-375.0,0.00013699,2]
[420590508,1776282651261,-375.0,0.00013699,2]
[420590509,1776282651270,-375.0,0.00013699,2]
[420590510,1776282651280,-375.0,0.00013699,2]
[420590511,1776282651289,-375.0,0.00013699,2]
[420590512,1776282651298,-375.0,0.00013699,2]
[420590513,1776282651308,-375.0,0.00013699,2]
[420590514,1776282651317,-375.0,0.00013699,2]
[420590515,1776282651326,-375.0,0.00013699,2]
[420590516,1776282651336,-375.0,0.00013699,2]
[420590517,1776282651346,-375.0,0.00013699,2]
[420590518,1776282651356,-375.0,0.00013699,2]
[420590519,1776282651366,-375.0,0.00013699,2]
[420590520,1776282651376,-375.0,0.00013699,2]
[420590521,1776282651385,-375.0,0.00013699,2]
[420590522,1776282651396,-375.0,0.00013699,2]
[420590523,1776282651406,-375.0,0.00013699,2]
[420590524,1776282651416,-375.0,0.00013699,2]
[420590525,1776282651426,-375.0,0.00013699,2]
[420590526,1776282651436,-375.0,0.00013699,2]
[420590527,1776282651446,-375.0,0.00013699,2]
[420590528,1776282651455,-375.0,0.00013699,2]
[420590529,1776282651465,-375.0,0.00013699,2]
[420590530,1776282651474,-375.0,0.00013699,2]
[420590531,1776282651483,-375.0,0.00013699,2]
[420590532,1776282651493,-375.0,0.00013699,2]
[420590533,1776282651505,-375.0,0.00013699,2]
[420590534,1776282651519,-375.0,0.00013699,2]
[420590535,1776282651529,-379.0,0.00013699,2]
[420590536,1776282651539,-379.0,0.00013699,2]
[420590537,1776282651549,-379.0,0.00013699,2]
[420590538,1776282651558,-379.0,0.00013699,2]
[420590539,1776282651568,-379.0,0.00013699,2]
[420590540,1776282651578,-386.0,0.00013699,2]
[420590541,1776282651587,-192.71435422,0.00013699,2]
[420590542,1776282651597,-157.72,0.00013699,2]
[420590543,1776282651607,-986.84,0.00013699,2]
[420590544,1776282651617,-786.68,0.00013699,2]
[420590545,1776282651626,-198.43572301,0.00013699,2]
[420590546,1776282651636,-500.0,0.00013699,2]
[420590547,1776282651647,-500.0,0.00013699,2]
[420590548,1776282651656,-500.0,0.00013699,2]
[420590549,1776282651666,-500.0,0.00013699,2]
[420590550,1776282651676,-500.0,0.00013699,2]
[420590551,1776282651686,-500.0,0.00013699,2]
[420590552,1776282651695,-500.0,0.00013699,2]
[420590553,1776282651705,-500.0,0.00013699,2]
[420590554,1776282651715,-500.0,0.00013699,2]
[420590555,1776282651725,-500.0,0.00013699,2]
[420590556,1776282651736,-500.0,0.00013699,2]
[420590557,1776282651745,-500.0,0.00013699,2]
[420590558,1776282651756,-500.0,0.00013699,2]
[420590559,1776282651766,-500.0,0.00013699,2]
[420590560,1776282651776,-500.0,0.00013699,2]
[420590561,1776282651786,-177.3732524,0.00013699,2]
[420590562,1776282651796,-500.0,0.00013699,2]
[420590563,1776282651806,-500.0,0.00013699,2]
[420590564,1776282651816,-500.0,0.00013699,2]
[420590565,1776282651825,-500.0,0.00013699,2]
[420590566,1776282651835,-500.0,0.00013699,2]
[420590567,1776282651844,-1563.0,0.00013699,2]
[420590568,1776282651854,-1563.0,0.00013699,2]
[420590569,1776282651863,-1563.0,0.00013699,2]
[420590570,1776282651873,-1563.0,0.00013699,2]
[420590571,1776282651883,-1563.0,0.00013699,2]
[420590572,1776282651892,-1563.0,0.00013699,2]
[420590573,1776282651902,-1563.0,0.00013699,2]
[420590574,1776282651911,-1563.0,0.00013699,2]
[420590575,1776282651922,-1563.0,0.00013699,2]
[420590576,1776282651932,-1563.0,0.00013699,2]
[420590577,1776282651942,-1563.0,0.00013699,2]
[420590578,1776282651951,-1563.0,0.00013699,2]
[420590579,1776282651961,-1563.0,0.00013699,2]
[420590580,1776282651971,-1563.0,0.00013699,2]
[420590581,1776282651980,-1563.0,0.00013699,2]
[420590582,1776282651990,-1563.0,0.00013699,2]
[420590583,1776282651999,-1563.0,0.00013699,2]
[420590584,1776282652010,-1563.0,0.00013699,2]
[420590585,1776282652020,-1563.0,0.00013699,2]
[420590586,1776282652029,-1563.0,0.00013699,2]
[420590587,1776282652040,-1563.0,0.00013699,2]
[420590588,1776282652051,-1563.0,0.00013699,2]
[420590589,1776282652061,-1563.0,0.00013699,2]
[420590590,1776282652071,-1576.69244874,0.00013699,2]
[420590591,1776282652082,-500.0,0.00013699,2]
[420590592,1776282652091,-500.0,0.00013699,2]
[420590593,1776282652101,-630.81925027,0.00013699,2]
[420590594,1776282652112,-500.0,0.00013699,2]
[420590595,1776282652122,-166.0,0.000137,2]
[420590596,1776282652131,-1575.0,0.000137,2]
[420590597,1776282652141,-1571.0,0.000137,2]
[420590598,1776282652151,-162.0,0.000137,2]
[420590599,1776282652160,-25748.08154222,0.00013742,2]
[420590600,1776282652170,-500.0,0.00013743,2]
[420590601,1776282652179,-62101.97350732,0.00013743,2]
[420590602,1776282652190,-166.66,0.00013836,2]
[420590603,1776282652199,-200.0,0.00013836,2]
[420590604,1776282652209,-155.0,0.00013936,3]
[420590605,1776282652219,-666.0,0.00013952,2]
[420590606,1776282652229,-666.0,0.00013952,2]
[420590607,1776282652238,-666.0,0.00013952,2]
[420590608,1776282652248,-666.0,0.00013952,2]
[420590609,1776282652257,-500.0,0.00013952,2]
[420590610,1776282652268,-1170.87,0.00013952,2]
[420590611,1776282652278,-500.0,0.00013952,2]
[420590612,1776282652288,-666.0,0.00013953,2]
[420590613,1776282652298,-160.09,0.00013954,2]
[420590614,1776282652308,-173.702352,0.00013961,2]
[420590615,1776282652318,-225.18697532,0.00013966,2]
[420590616,1776282652331,-194.72792766,0.00013966,2]
[420590617,1776282652340,-166.66,0.00013973,2]
[420590618,1776282652350,-986.84,0.00013973,2]
[420590619,1776282652360,-786.68,0.00013973,2]
[420590620,1776282652370,-2000.0,0.00014,2]
[420590621,1776282652381,-212.126925,0.00014,2]
[420590622,1776282652391,-160.09,0.00014073,2]
[420590623,1776282652401,-166.66,0.0001411,2]
[420590624,1776282652411,-526.97,0.00014167,2]
[420590625,1776282652421,-263.47151995,0.00014185,2]
[420590626,1776282652430,-160.08627409,0.00014192,2]
[420590627,1776282652439,-151.0,0.00014237,2]
[420590628,1776282652450,-666.0,0.00014246,2]
[420590629,1776282652460,-1817.38,0.00014246,2]
[420590630,1776282652471,-1817.38,0.00014246,2]
[420590631,1776282652480,-1817.38,0.00014246,2]
[420590632,1776282652490,-1817.38,0.00014246,2]
[420590633,1776282652499,-1817.46,0.00014246,2]
[420590634,1776282652509,-500.0,0.00014246,2]
[420590635,1776282652519,-163.69217029,0.00014246,2]
[420590636,1776282652529,-166.66,0.00014247,2]
[420590637,1776282652539,-316.93981019,0.00014247,2]
[420590638,1776282652549,-1000.0,0.00014247,2]
[420590639,1776282652559,-503.04036452,0.00014247,2]
[420590640,1776282652569,-1081.81605113,0.00014247,2]
[420590641,1776282652783,-1000.0,0.00014247,2]
[420590642,1776282652793,-1000.0,0.00014247,2]
[420590643,1776282652803,-500.70319657,0.00014247,2]
[420590644,1776282652813,-1000.0,0.00014247,2]
[420590645,1776282652823,-501.31866275,0.00014247,2]
[420590646,1776282652834,-1000.0,0.00014247,2]
[420590647,1776282652844,-243.41024215,0.00014247,2]
[420590648,1776282652854,-612.12377874,0.00014247,2]
[420590649,1776282652865,-1000.0,0.00014247,2]
[420590650,1776282652875,-1000.0,0.00014247,2]
[420590651,1776282652886,-1002.04940376,0.00014247,2]
[420590652,1776282652898,-1000.0,0.00014247,2]
[420590653,1776282652908,-500.80009142,0.00014247,2]
[420590654,1776282652918,-1000.0,0.00014247,2]
[420590655,1776282652928,-402.43506709,0.00014247,2]
[420590656,1776282652939,-1000.77815463,0.00014247,2]
[420590657,1776282652949,-500.0,0.00014247,2]
[420590658,1776282652960,-500.0,0.00014247,2]
[420590659,1776282652969,-500.0,0.00014247,2]
[420590660,1776282652980,-500.76224328,0.00014247,2]
[420590661,1776282652990,-1000.0,0.00014247,2]
[420590662,1776282653000,-1000.0,0.00014247,2]
[420590663,1776282653010,-1000.0,0.00014247,2]
[420590664,1776282653019,-351.97152466,0.00014247,2]
[420590665,1776282653029,-1000.0,0.00014247,2]
[420590666,1776282653039,-1000.0,0.00014247,2]
[420590667,1776282653050,-1000.0,0.00014247,2]
[420590668,1776282653060,-394.7844494,0.00014247,2]
[420590669,1776282653071,-1000.0,0.00014247,2]
[420590670,1776282653081,-1000.0,0.00014247,2]
[420590671,1776282653091,-1000.0,0.00014247,2]
[420590672,1776282653101,-1000.0,0.00014247,2]
[420590673,1776282653111,-688.31087151,0.00014247,2]
[420590674,1776282653121,-1000.0,0.00014247,2]
[420590675,1776282653132,-1005.73348632,0.00014247,2]
[420590676,1776282653142,-986.84,0.00014247,2]
[420590677,1776282653153,-786.68,0.00014247,2]
[420590678,1776282653163,-150.0,0.00014247,2]
[420590679,1776282653173,-150.0,0.00014247,2]
[420590680,1776282653183,-150.0,0.00014247,2]
[420590681,1776282653194,-150.0,0.00014247,2]
[420590682,1776282653203,-150.0,0.00014247,2]
[420590683,1776282653214,-150.0,0.00014247,2]
[420590684,1776282653224,-150.0,0.00014247,2]
[420590685,1776282653234,-159.0,0.00014247,2]
[420590686,1776282653245,-526.97,0.00014283,2]
[420590687,1776282653255,-2000.0,0.000143,2]
[420590688,1776282653266,-2000.0,0.000143,2]
[420590689,1776282653277,-2000.0,0.000143,2]
[420590690,1776282653287,-2000.0,0.000143,2]
[420590691,1776282653298,-2000.0,0.000143,2]
[420590692,1776282653309,-2000.0,0.000143,2]
[420590693,1776282653319,-2000.0,0.000143,2]
[420590694,1776282653329,-2000.0,0.000143,2]
[420590695,1776282653339,-2000.0,0.000143,2]
[420590696,1776282653350,-1542.0,0.000143,2]
[420590697,1776282653361,-1350.0,0.00014311,2]
[420590698,1776282653372,-1350.0,0.00014311,2]
[420590699,1776282653383,-1350.0,0.00014311,2]
[420590700,1776282653394,-1350.0,0.00014311,2]
[420590701,1776282653405,-1350.0,0.00014311,2]
[420590702,1776282653416,-1350.0,0.00014311,2]
[420590703,1776282653427,-1350.0,0.00014311,2]
[420590704,1776282653437,-1350.0,0.00014311,2]
[420590705,1776282653447,-1350.0,0.00014311,2]
[420590706,1776282653458,-1032.0,0.00014311,2]
[420590707,1776282653469,-502.0,0.00014311,2]
[420590708,1776282653490,-1575.0,0.0001434,2]
[420590709,1776282653502,-2244.11,0.00014384,2]
[420590710,1776282653512,-166.66,0.00014384,2]
[420590711,1776282653523,-200.0,0.00014384,2]
[420590712,1776282653533,-1000.0,0.00014409,2]
[420590713,1776282653543,-2000.0,0.00014409,2]
[420590714,1776282653553,-2000.0,0.00014409,2]
[420590715,1776282653563,-2000.0,0.00014409,2]
[420590716,1776282653572,-2000.0,0.00014409,2]
[420590717,1776282653582,-2000.0,0.00014409,2]
[420590718,1776282653591,-2000.0,0.00014409,2]
[420590719,1776282653601,-2000.0,0.00014409,2]
[420590720,1776282653611,-2000.0,0.00014409,2]
[420590721,1776282653620,-2022.0,0.00014409,2]
[420590722,1776282653629,-650.0,0.00014409,2]
[420590723,1776282653639,-650.0,0.00014409,2]
[420590724,1776282653648,-650.0,0.00014409,2]
[420590725,1776282653658,-650.0,0.00014409,2]
[420590726,1776282653667,-650.0,0.00014409,2]
[420590727,1776282653677,-650.0,0.00014409,2]
[420590728,1776282653687,-650.0,0.00014409,2]
[420590729,1776282653697,-650.0,0.00014409,2]
[420590730,1776282653707,-650.0,0.00014409,2]
[420590731,1776282653717,-508.0,0.00014409,2]
[420590732,1776282653727,-500.0,0.00014461,2]
[420590733,1776282653737,-25748.08154222,0.00014462,2]
[420590734,1776282653746,-62101.97350732,0.00014462,2]
[420590735,1776282653756,-254.72256273,0.000145,4]
[420590736,1776282653765,-233.51889341,0.00014514,2]
[420590737,1776282653775,-201.93286099,0.00014514,2]
[420590738,1776282653784,-350.0,0.00014514,2]
[420590739,1776282653794,-350.0,0.00014514,2]
[420590740,1776282653803,-350.0,0.00014514,2]
[420590741,1776282653812,-350.0,0.00014514,2]
[420590742,1776282653821,-350.0,0.00014514,2]
[420590743,1776282653831,-350.0,0.00014514,2]
[420590744,1776282653840,-350.0,0.00014514,2]
[420590745,1776282653850,-350.0,0.00014514,2]
[420590746,1776282653859,-498.0,0.00014514,2]
[420590747,1776282653869,-173.0,0.0001452,2]
[420590748,1776282653879,-986.84,0.00014521,2]
[420590749,1776282653888,-786.68,0.00014521,2]
[420590750,1776282653898,-1111.68,0.00014586,2]
[420590751,1776282653907,-1122.33,0.00014586,2]
[420590752,1776282653918,-1439.3,0.00014586,2]
[420590753,1776282653927,-563.28,0.00014586,2]
[420590754,1776282653936,-1000.0,0.00014593,2]
[420590755,1776282653946,-666.0,0.00014593,2]
[420590756,1776282653956,-1000.0,0.00014598,2]
[420590757,1776282653965,-2742.3266743,0.000146,2]
[420590758,1776282653984,-332.6733257,0.000146,2]
[420590759,1776282653994,-2000.0,0.000146,2]
[420590760,1776282654004,-2000.0,0.000146,2]
[420590761,1776282654014,-162.0,0.0001462,2]
[420590762,1776282654023,-1000.0,0.00014631,2]
[420590763,1776282654033,-850.39995838,0.00014644,2]
[420590764,1776282654278,-149.60004162,0.00014644,2]
[420590765,1776282654288,-146.91245838,0.00014654,2]
[420590766,1776282654323,-707.66754162,0.00014654,2]
[420590767,1776282654332,-1026.53,0.00014654,2]
[420590768,1776282654342,-360.58710416,0.00014654,2]
[420590769,1776282654351,-666.0,0.00014654,2]
[420590770,1776282654360,-7260.21535765,0.00014655,2]
[420590771,1776282654372,-2592.73464235,0.00014655,2]
[420590772,1776282654382,-2517.64029648,0.00014655,2]
[420590773,1776282654395,-1822.39970352,0.00014655,2]
[420590774,1776282654404,-2814.2,0.00014655,2]
[420590775,1776282654414,-823.40029794,0.00014655,2]
[420590776,1776282654426,-1685.999998,0.00014655,2]
[420590787,1776282842888,516.26,0.00016455,30]
[420590790,1776282891930,61125.74,0.000165,30]
[420590798,1776283126399,1253.43,8.459e-05,2]
[420590812,1776283602220,166.66,8.684e-05,2]
[420590814,1776283653185,119.17948136,8.8e-05,3]
[420590815,1776283653210,1080.82051864,8.8e-05,3]
[420590816,1776283690415,500.0,8.8e-05,3]
[420590817,1776283712282,1070.3993517,8.488e-05,2]
[420590818,1776283712312,529.6006483,8.488e-05,2]
[420590819,1776283724257,174.77,6.701e-05,2]
[420590839,1776283794448,300.0,8.8e-05,3]
[420590840,1776283794482,200.0,8.562e-05,2]
[420590841,1776283826253,509.69,0.00014681,30]
[420590947,1776283833749,-300.0,8.821e-05,2]
[420590948,1776283833759,-1200.0,8.821e-05,2]
[420590949,1776283833779,-160.0,8.821e-05,2]
[420590950,1776283833789,-22482.28295567,8.822e-05,2]
[420590951,1776283833801,-7393.85317137,8.822e-05,2]
[420590952,1776283833826,-37673.2173397,8.822e-05,2]
[420590953,1776283833838,-31680.23051905,8.822e-05,2]
[420590954,1776283833880,-420.0,8.822e-05,2]
[420590955,1776283833893,-1254.09285305,8.822e-05,2]
[420590956,1776283833905,-70671.92154339,8.822e-05,2]
[420590957,1776283833916,-3904.47098206,8.822e-05,2]
[420590958,1776283833928,-17846.90882286,8.822e-05,2]
[420590959,1776283834096,-687.0,8.822e-05,2]
[420590960,1776283834108,-3383.42896817,8.822e-05,2]
[420590961,1776283834119,-2350.76077348,8.822e-05,2]
[420590962,1776283834137,-2318.46368358,8.822e-05,2]
[420590963,1776283834239,-1948.34190546,8.822e-05,2]
[420590964,1776283834250,-8045.54526625,8.822e-05,2]
[420590969,1776283839424,-312.9853392,8.822e-05,2]
[420590974,1776283839460,-841.85204878,8.822e-05,2]
[420590976,1776283839472,-9561.50740717,8.822e-05,2]
[420590978,1776283839483,-4750.84437199,8.822e-05,2]
[420590980,1776283839495,-339.88265974,8.822e-05,2]
[420590985,1776283839527,-358.54210325,8.822e-05,2]
[420590987,1776283839539,-999.12735,8.822e-05,2]
[420591002,1776283839671,-467.4334257,8.822e-05,2]
[420591006,1776283839702,-4260.6368868,8.822e-05,2]
[420591008,1776283839714,-10915.79728157,8.822e-05,2]
[420591011,1776283839727,-6275.55825757,8.822e-05,2]
[420591056,1776283840136,-17004.0,8.822e-05,2]
[420591059,1776283840148,-1000.0,8.822e-05,2]
[420591086,1776283840394,-336.62273096,8.822e-05,2]
[420591102,1776283840557,-1289.67366739,8.822e-05,2]
[420591105,1776283840569,-550.0,8.822e-05,2]
[420591110,1776283840609,-208482.65559188,8.822e-05,2]
[420591118,1776283840666,-335.18001523,8.822e-05,2]
[420591154,1776283845543,-326.12753068,8.821e-05,2]
[420591155,1776283845553,-277.87246932,8.821e-05,2]
[420591157,1776283845687,-357.23838031,8.821e-05,2]
[420591158,1776283845696,-500.0,8.821e-05,2]
[420591159,1776283845706,-500.0,8.821e-05,2]
[420591160,1776283845716,-137.26161969,8.821e-05,2]
[420591161,1776283845797,-362.73838031,8.821e-05,2]
[420591162,1776283845806,-500.0,8.821e-05,2]
[420591163,1776283845816,-500.0,8.821e-05,2]
[420591164,1776283845826,-500.0,8.821e-05,2]
[420591165,1776283845835,-500.0,8.821e-05,2]
[420591166,1776283845844,-163.41572065,8.821e-05,2]
[420591168,1776283845854,-500.0,8.821e-05,2]
[420591170,1776283845863,-500.0,8.821e-05,2]
[420591171,1776283845872,-500.0,8.821e-05,2]
[420591172,1776283845881,-500.0,8.821e-05,2]
[420591173,1776283845891,-500.0,8.821e-05,2]
[420591174,1776283845900,-500.0,8.821e-05,2]
[420591175,1776283845909,-500.0,8.821e-05,2]
[420591176,1776283845918,-500.0,8.821e-05,2]
[420591177,1776283845928,-445.04446609,8.821e-05,2]
[420591178,1776283845937,-500.0,8.821e-05,2]
[420591179,1776283845947,-500.0,8.821e-05,2]
[420591180,1776283845956,-500.0,8.821e-05,2]
[420591181,1776283845965,-500.0,8.821e-05,2]
[420591182,1776283845974,-252.44750198,8.821e-05,2]
[420591183,1776283845984,-52421.02324014,8.822e-05,2]
[420591184,1776283846015,-384546.07247073,8.822e-05,2]
[420591205,1776283847567,-1610.94869789,8.822e-05,2]
[420591206,1776283847612,-107952.9999975,8.822e-05,2]
[420591207,1776283849983,1019.39,0.00015577,30]
[420591208,1776283850329,1529.08,0.00016473,30]
[420591210,1776283888917,2299.31797087,0.00016,30]
[420591212,1776284049765,1446.84922204,8.775e-05,2]
[420591213,1776284049792,14065.72312696,8.775e-05,2]
[420591216,1776284116634,155.0,8.775e-05,3]
[420591217,1776284118227,6780.7058,8.722e-05,2]
[420591219,1776284167544,151.0,8.775e-05,3]
[420591220,1776284179349,3174.8,8.008e-05,2]
[420591221,1776284192495,2668.9931,8.722e-05,2]
[420591222,1776284205074,2500.0,8.722e-05,2]
[420591223,1776284226668,151.0,8.775e-05,3]
[420591225,1776284242443,1163.5,8.008e-05,2]
[420591226,1776284242488,3981.01,8.219e-05,2]
[420591227,1776284284772,151.0,8.775e-05,3]
[420591228,1776284313338,17470.1067,8.722e-05,2]
[420591229,1776284323742,152.43,8.219e-05,2]
[420591230,1776284345783,151.0,8.775e-05,3]
[420591231,1776284361128,71119.598,8.722e-05,2]
[420591232,1776284368706,2500.0,8.722e-05,2]
[420591233,1776284412080,155.0,8.722e-05,3]
[420591235,1776284467192,151.0,8.722e-05,3]
[420591237,1776284523533,98760.6328,8.722e-05,2]
[420591238,1776284525793,2500.0,8.722e-05,2]
[420591239,1776284528606,151.0,8.722e-05,3]
[420591240,1776284586961,151.0,8.722e-05,3]
[420591241,1776284587387,164.0,8.722e-05,3]
[420591242,1776284601977,769.36312026,8.722e-05,2]
[420591243,1776284645223,151.0,8.722e-05,3]
[420591244,1776284646367,419205.56074784,8.722e-05,2]
[420591245,1776284646404,725791.74495216,8.722e-05,2]
[420591246,1776284691147,2500.0,8.722e-05,2]
[420591247,1776284705374,10000.0,8.777e-05,2]
[420591248,1776284706139,2000.0,8.239e-05,2]
[420591249,1776284707751,151.0,8.722e-05,3]
[420591250,1776284707789,156.0,8.722e-05,3]
[420591251,1776284711837,162.0,8.722e-05,3]
[420591252,1776284719858,1259239.25504784,8.722e-05,2]
[420591253,1776284719892,240760.74495216,8.722e-05,2]
[420591254,1776284721996,10000.0,8.777e-05,2]
[420591255,1776284755287,2578.41,8.24e-05,2]
[420591256,1776284767939,162.0,8.24e-05,3]
[420591258,1776284812512,435545.7164,8.721e-05,2]
[420591260,1776284838938,151.0,8.721e-05,3]
[420591261,1776284853405,1628.9301,8.722e-05,2]
[420591262,1776284886382,1309173.19854784,8.722e-05,2]
[420591263,1776284898919,-9075.70391305,8.722e-05,2]
[420591264,1776284899347,-10000.01,8.722e-05,2]
[420591265,1776284899460,-10000.01,8.722e-05,2]
[420591266,1776284899572,-10000.01,8.722e-05,2]
[420591267,1776284899700,-10000.01,8.722e-05,2]
[420591268,1776284899841,-10000.01,8.722e-05,2]
[420591269,1776284899947,-10000.01,8.722e-05,2]
[420591270,1776284900056,-10000.01,8.722e-05,2]
[420591271,1776284900169,-10000.01,8.722e-05,2]
[420591272,1776284907762,-10000.01,8.722e-05,2]
[420591273,1776284907884,-10000.01,8.722e-05,2]
[420591274,1776284907990,-10000.01,8.722e-05,2]
[420591275,1776284908152,-10000.01,8.722e-05,2]
[420591276,1776284908278,-10000.01,8.722e-05,2]
[420591277,1776284908559,-10000.01,8.722e-05,2]
[420591278,1776284908684,-10000.01,8.722e-05,2]
[420591279,1776284908806,-10000.01,8.722e-05,2]
[420591280,1776284908959,-10000.01,8.722e-05,2]
[420591281,1776284910983,-10000.01,8.722e-05,2]
[420591282,1776284913811,-1750.91753911,8.722e-05,2]
[420591283,1776284920179,4679.93,8.6e-05,2]
[420591284,1776284928922,-151.0,8.722e-05,3]
[420591285,1776284928952,-162.0,8.722e-05,3]
[420591286,1776284949947,151.0,8.722e-05,3]
[420591287,1776284954148,-300.0,8.776e-05,2]
[420591288,1776284961480,9400.01,8.721e-05,2]
[420591289,1776284961508,10000.01,8.721e-05,2]
[420591290,1776284961534,10000.01,8.721e-05,2]
[420591291,1776284961560,10000.01,8.721e-05,2]
[420591292,1776284961585,10000.01,8.721e-05,2]
[420591293,1776284961613,10000.01,8.721e-05,2]
[420591294,1776284961638,10000.01,8.721e-05,2]
[420591295,1776284961663,10000.01,8.721e-05,2]
[420591296,1776284961688,10000.01,8.721e-05,2]
[420591297,1776284961713,10000.01,8.721e-05,2]
[420591298,1776284967237,1852.42,8.026e-05,2]
[420591299,1776285004223,-300.0,8.72e-05,2]
[420591300,1776285004254,-300.0,8.72e-05,2]
[420591301,1776285004283,-300.0,8.72e-05,2]
[420591302,1776285004312,-1200.0,8.72e-05,2]
[420591303,1776285004342,-150.0,8.72e-05,2]
[420591304,1776285004371,-300.0,8.72e-05,2]
[420591305,1776285004400,-263.0,8.721e-05,2]
[420591306,1776285012262,150.0,8.026e-05,3]